fUSD/lending_fUSD_20250213
["ID","MTS","AMOUNT","RATE_DAILY","PERIOD"]
[352937062,1739444105009,153.0,0.0001295,30]
[352937063,1739444105554,153.0,0.00013773,30]
[352937064,1739444105632,153.0,0.00014595,30]
[352937093,1739444215087,169.45,0.00010137,2]
[352937094,1739444247085,1140.8,0.00011811,2]
[352937095,1739444404066,199.0,8.836e-05,30]
[352937096,1739444404378,199.0,9.529e-05,30]
[352937097,1739444405195,199.0,0.00010222,30]
[352937098,1739444405262,199.0,0.00010915,30]
[352937099,1739444405459,199.0,0.00011607,30]
[352937100,1739444405763,199.0,0.000123,30]
[352937101,1739444406066,199.0,0.00012993,30]
[352937102,1739444406355,199.0,0.00013686,30]
[352937103,1739444406665,199.0,0.00014379,30]
[352937105,1739444703849,156.0,8.836e-05,30]
[352937106,1739444704218,156.0,9.849e-05,30]
[352937107,1739444704570,156.0,0.00010861,30]
[352937108,1739444704903,156.0,0.00011874,30]
[352937109,1739444705207,156.0,0.00012886,30]
[352937110,1739444705557,156.0,0.00013899,30]
[352937111,1739444705862,156.0,0.00014912,30]
[352937118,1739444838116,-280.48515367,0.00012968,2]
[352937119,1739444838138,-1100.0,0.00013068,2]
[352937120,1739444838160,-1100.0,0.00013068,2]
[352937121,1739444838182,-278.5787205,0.00013068,2]
[352937122,1739444841110,-221.4212795,0.00013068,2]
[352937123,1739444841131,-150.0,0.00013135,2]
[352937124,1739444841152,-1719.32,0.00013217,2]
[352937125,1739444841174,-300.0,0.00013235,2]
[352937126,1739444841196,-285.46,0.00013236,2]
[352937127,1739444841218,-468.32,0.00013274,2]
[352937128,1739444841240,-144.43717199,0.00013368,2]
[352937130,1739444845082,-858.51934038,0.00013368,2]
[352937133,1739444906483,500.0,0.00014996,30]
[352937135,1739444949156,-1100.0,0.00013068,2]
[352937136,1739444949179,-1100.0,0.00013068,2]
[352937137,1739444949200,-500.0,0.00013068,2]
[352937138,1739444949222,-1515.52,0.00013339,2]
[352937139,1739444949244,-300.0,0.00013367,2]
[352937140,1739444949267,-2495.12348763,0.00013368,2]
[352937141,1739444949288,-150.0,0.0001337,2]
[352937142,1739444949311,-563.02,0.00013372,2]
[352937143,1739444949331,-669.48,0.00013401,2]
[352937144,1739444949352,-541.48,0.00013405,2]
[352937145,1739444949376,-300.0,0.00013424,2]
[352937146,1739444949399,-1000.0,0.00013429,2]
[352937147,1739444949421,-2292.13,0.00013516,2]
[352937148,1739444949444,-200.0,0.00013519,2]
[352937149,1739444949471,-186.33,0.00013563,2]
[352937150,1739444949496,-6818.86,0.00013594,2]
[352937151,1739444949520,-154.41,0.00013728,2]
[352937152,1739444949544,-172.77,0.00013769,2]
[352937153,1739444949572,-55.3729638,0.00013797,2]
[352937154,1739444950006,-99.0370362,0.00013797,2]
[352937155,1739444950028,-200.0,0.00013817,2]
[352937156,1739444950050,-150.0,0.00013858,2]
[352937157,1739444950073,-250.0,0.00013908,2]
[352937158,1739444950094,-176.61,0.00013918,2]
[352937159,1739444950116,-1267.18,0.00013918,2]
[352937160,1739444950138,-1500.0,0.00013918,2]
[352937161,1739444950159,-280.48515366,0.00013932,2]
[352937162,1739444950181,-975.34403414,0.00013956,2]
[352937163,1739444965092,-1334.26,0.00013357,2]
[352937164,1739444965114,-822.88596586,0.00013956,2]
[352937165,1739444965134,-167.04,0.00014034,2]
[352937166,1739444965155,-1140.8,0.00014075,2]
[352937167,1739444965175,-150.0,0.00014075,2]
[352937168,1739444965196,-1852.42,0.00014099,2]
[352937169,1739444965218,-400.0,0.000142,5]
[352937170,1739444965237,-660.4,0.00014291,2]
[352937171,1739444965259,-800.0,0.000143,5]
[352937172,1739444965280,-250.0,0.0001435,2]
[352937173,1739444965300,-150.0,0.00014371,2]
[352937174,1739444965321,-150.0,0.00014375,2]
[352937175,1739444965343,-1300.0,0.000144,5]
[352937176,1739444965365,-1100.0,0.00014438,2]
[352937177,1739444965386,-1100.0,0.00014438,2]
[352937178,1739444965410,-500.0,0.00014438,2]
[352937179,1739444965431,-1700.0,0.000145,5]
[352937180,1739444965454,-172.77,0.00014527,2]
[352937181,1739444965475,-443.01,0.00014575,2]
[352937182,1739444965495,-300.0,0.00014575,2]
[352937183,1739444965515,-150.74,0.00014575,2]
[352937184,1739444965535,-2017.07,0.00014575,2]
[352937185,1739444965555,-300.0,0.00014575,2]
[352937186,1739444965576,-438.88,0.00014575,2]
[352937187,1739444965597,-986.09,0.00014575,2]
[352937188,1739444965616,-986.09,0.00014575,2]
[352937189,1739444965638,-986.09,0.00014575,2]
[352937190,1739444965659,-2100.0,0.000146,5]
[352937191,1739444965680,-420.0,0.00014654,2]
[352937192,1739444965700,-400.0,0.000147,5]
[352937193,1739444965721,-131.32650251,0.00014705,2]
[352937194,1739444968251,-18.67349749,0.00014705,2]
[352937195,1739444968272,-500.0,0.00014767,2]
[352937196,1739444968296,-105.6471294,0.000148,5]
[352937197,1739445003824,157.0,0.000148,30]
[352937201,1739445031728,-255.77,0.00014217,2]
[352937202,1739445031782,-265.31,0.00014217,2]
[352937203,1739445031792,-517.63,0.00014276,2]
[352937204,1739445031804,-720.33,0.00014276,2]
[352937205,1739445031815,-0.3,0.00014276,2]
[352937206,1739445031824,-150.0,0.00014538,2]
[352937207,1739445031834,-150.0,0.0001475,2]
[352937208,1739445031843,-291.5349804,0.000148,5]
[352937209,1739445031854,-2.8178902,0.000148,5]
[352937210,1739445031864,-150.0,0.00014884,2]
[352937211,1739445031873,-280.48515366,0.00014895,2]
[352937212,1739445031881,-300.66326871,0.00014896,2]
[352937213,1739445031890,-75.99686743,0.00014896,2]
[352937214,1739445031913,-83.81512686,0.00014896,2]
[352937215,1739445031924,-300.0,0.00014899,2]
[352937216,1739445031936,-104.28617204,0.000149,2]
[352937217,1739445031947,-16177.34477289,0.000149,2]
[352937218,1739445031965,-3527.56055497,0.000149,2]
[352937219,1739445031978,-3083.90026072,0.000149,2]
[352937220,1739445031999,-9345.50509731,0.000149,2]
[352937221,1739445032010,-400.0,0.000149,5]
[352937222,1739445032019,-500.0,0.00014973,2]
[352937223,1739445032029,-346.33480582,0.00014984,2]
[352937224,1739445032038,-500.0,0.00014995,2]
[352937225,1739445032050,-500.0,0.00014995,2]
[352937226,1739445032061,-476.76714081,0.00014995,2]
[352937227,1739445032072,-2139.71,0.00014995,2]
[352937228,1739445032083,-1268.61,0.00014995,2]
[352937229,1739445032093,-1969.29,0.00014995,2]
[352937230,1739445032103,-3556.19319089,0.00014995,2]
[352937231,1739445032115,-319.3053195,0.00014995,2]
[352937232,1739445032127,-70.42148961,0.00014995,2]
[352937233,1739445032137,-1779.8,0.00014995,2]
[352937234,1739445032147,-599.77851239,0.00014995,2]
[352937235,1739445032160,-2857.41148761,0.00014995,2]
[352937236,1739445032170,-2990.44,0.00014995,2]
[352937237,1739445032181,-500.0,0.00014995,2]
[352937238,1739445032191,-3016.04,0.00014995,2]
[352937239,1739445032201,-3172.65,0.00014995,2]
[352937240,1739445032211,-1855.07,0.00014995,2]
[352937241,1739445032221,-2645.84,0.00014995,2]
[352937242,1739445032232,-2709.81,0.00014995,2]
[352937243,1739445032242,-4342.92,0.00014995,2]
[352937244,1739445032251,-1201.73,0.00014995,2]
[352937245,1739445032260,-2825.72,0.00014995,2]
[352937247,1739445032270,-2226.11,0.00014995,2]
[352937248,1739445032279,-500.0,0.00014995,2]
[352937250,1739445032289,-500.0,0.00014995,2]
[352937251,1739445032298,-5254.97,0.00014995,2]
[352937253,1739445032307,-500.0,0.00014995,2]
[352937254,1739445032317,-500.0,0.00014995,2]
[352937256,1739445032326,-1226.94,0.00014995,2]
[352937258,1739445032336,-2141.86,0.00014995,2]
[352937259,1739445032346,-500.0,0.00014995,2]
[352937261,1739445032356,-3238.99,0.00014995,2]
[352937262,1739445032366,-1358.55,0.00014995,2]
[352937264,1739445032376,-831.55,0.00014995,2]
[352937266,1739445032389,-183.845147,0.00014996,2]
[352937267,1739445032404,-156.427095,0.00014996,2]
[352937269,1739445032415,-155.788179,0.00014996,2]
[352937270,1739445032424,-203.237362,0.00014996,2]
[352937272,1739445032435,-500.0,0.00014996,2]
[352937273,1739445032445,-505.07,0.00014996,2]
[352937275,1739445032455,-500.0,0.00014996,2]
[352937276,1739445032464,-500.0,0.00014996,2]
[352937278,1739445032477,-1175.24,0.00014996,2]
[352937281,1739445032487,-500.0,0.00014996,2]
[352937283,1739445032497,-1874.6,0.00014996,2]
[352937286,1739445032507,-500.0,0.00014996,2]
[352937288,1739445032518,-1861.61,0.00014996,2]
[352937291,1739445032528,-672.18,0.00014996,2]
[352937294,1739445032537,-190.171229,0.00014996,2]
[352937296,1739445032548,-500.0,0.00014996,2]
[352937319,1739445032798,-500.0,0.00014996,2]
[352937321,1739445032810,-190.36253746,0.00014996,2]
[352937323,1739445032820,-500.0,0.00014996,2]
[352937325,1739445032830,-561.07797262,0.00014996,2]
[352937327,1739445032840,-500.0,0.00014996,2]
[352937329,1739445032849,-778.81,0.00014996,2]
[352937331,1739445032859,-500.0,0.00014996,2]
[352937333,1739445032869,-833.33,0.00014996,2]
[352937335,1739445032878,-500.0,0.00014996,2]
[352937337,1739445032888,-501.10167766,0.00014996,2]
[352937339,1739445032898,-858.3,0.00014996,2]
[352937341,1739445032909,-500.0,0.00014996,2]
[352937343,1739445032918,-603.11,0.00014996,2]
[352937345,1739445032928,-1388.52,0.00014996,2]
[352937347,1739445032938,-500.0,0.00014996,2]
[352937349,1739445032948,-500.0,0.00014996,2]
[352937351,1739445032958,-500.0,0.00014996,2]
[352937352,1739445032968,-500.0,0.00014996,2]
[352937354,1739445032978,-1098.39,0.00014996,2]
[352937356,1739445032988,-500.0,0.00014996,2]
[352937358,1739445032998,-540.96,0.00014996,2]
[352937359,1739445033008,-852.92,0.00014996,2]
[352937360,1739445033018,-500.0,0.00014996,2]
[352937361,1739445033028,-2051.29,0.00014996,2]
[352937362,1739445033038,-500.0,0.00014996,2]
[352937363,1739445033048,-500.0,0.00014996,2]
[352937364,1739445033057,-500.0,0.00014996,2]
[352937365,1739445033066,-1291.29,0.00014996,2]
[352937366,1739445033075,-500.0,0.00014996,2]
[352937367,1739445033085,-500.0,0.00014996,2]
[352937368,1739445033094,-504.71106065,0.00014996,2]
[352937369,1739445033103,-967.1,0.00014996,2]
[352937370,1739445033112,-1795.3,0.00014996,2]
[352937371,1739445033122,-500.0,0.00014996,2]
[352937372,1739445033131,-1883.18,0.00014996,2]
[352937373,1739445033140,-622.91473213,0.00014996,2]
[352937374,1739445033150,-724.23364772,0.00014996,2]
[352937375,1739445033266,-228.27635228,0.00014996,2]
[352937376,1739445033277,-500.0,0.00014996,2]
[352937377,1739445033287,-168.87653092,0.00014996,2]
[352937378,1739445033300,-331.12346908,0.00014996,2]
[352937379,1739445033310,-162.37608773,0.00014996,2]
[352937380,1739445033320,-342.77044325,0.00014996,2]
[352937381,1739445033333,-157.22955675,0.00014996,2]
[352937382,1739445033343,-933.97,0.00014996,2]
[352937383,1739445033353,-900.76,0.00014996,2]
[352937384,1739445033363,-516.04044325,0.00014996,2]
[352937385,1739445033375,-327.30955675,0.00014996,2]
[352937386,1739445033386,-758.52,0.00014996,2]
[352937387,1739445033400,-236.39073904,0.00014996,2]
[352937388,1739445033418,-263.60926096,0.00014996,2]
[352937389,1739445033429,-1082.27,0.00014996,2]
[352937390,1739445033438,-689.09,0.00014996,2]
[352937391,1739445033448,-500.0,0.00014996,2]
[352937392,1739445033458,-500.0,0.00014996,2]
[352937393,1739445033473,-540.23,0.00014996,2]
[352937394,1739445033484,-500.0,0.00014996,2]
[352937395,1739445033494,-500.0,0.00014996,2]
[352937396,1739445033505,-500.0,0.00014996,2]
[352937397,1739445033515,-1372.65,0.00014996,2]
[352937398,1739445033527,-552.26,0.00014996,2]
[352937399,1739445033538,-809.46,0.00014996,2]
[352937400,1739445033549,-500.0,0.00014996,2]
[352937401,1739445033559,-500.0,0.00014996,2]
[352937402,1739445033570,-660.66614286,0.00014996,2]
[352937403,1739445033584,-272.01385714,0.00014996,2]
[352937404,1739445033595,-363.9772706,0.00014996,2]
[352937405,1739445033608,-259.5027294,0.00014996,2]
[352937406,1739445033618,-1390.3,0.00014996,2]
[352937407,1739445033628,-500.0,0.00014996,2]
[352937408,1739445033638,-875.34,0.00014996,2]
[352937409,1739445033648,-500.0,0.00014996,2]
[352937410,1739445033658,-500.0,0.00014996,2]
[352937411,1739445033669,-500.0,0.00014996,2]
[352937412,1739445033678,-1008.85,0.00014996,2]
[352937413,1739445033688,-1621.69,0.00014996,2]
[352937414,1739445033698,-519.58,0.00014996,2]
[352937415,1739445033709,-797.2,0.00014996,2]
[352937416,1739445033719,-500.0,0.00014996,2]
[352937417,1739445033730,-1989.1,0.00014996,2]
[352937418,1739445033740,-334.84173596,0.00014996,2]
[352937432,1739445037755,-1100.0,0.00013068,2]
[352937433,1739445037764,-1100.0,0.00013068,2]
[352937434,1739445037774,-1100.0,0.00014438,2]
[352937435,1739445037785,-1100.0,0.00014438,2]
[352937436,1739445037794,-544.16826404,0.00014996,2]
[352937437,1739445037804,-500.0,0.00014996,2]
[352937438,1739445037813,-500.0,0.00014996,2]
[352937439,1739445037823,-500.0,0.00014996,2]
[352937440,1739445037833,-502.0591427,0.00014996,2]
[352937441,1739445037842,-500.0,0.00014996,2]
[352937442,1739445037852,-554.03,0.00014996,2]
[352937443,1739445037862,-500.0,0.00014996,2]
[352937444,1739445037871,-502.74524634,0.00014996,2]
[352937445,1739445037880,-500.0,0.00014996,2]
[352937446,1739445037892,-500.0,0.00014996,2]
[352937447,1739445037903,-500.0,0.00014996,2]
[352937448,1739445037912,-1038.37,0.00014996,2]
[352937449,1739445037921,-500.0,0.00014996,2]
[352937456,1739445038151,-479.51810565,0.00014996,2]
[352937457,1739445038165,-20.48189435,0.00014996,2]
[352937458,1739445038175,-501.85892391,0.00014996,2]
[352937459,1739445038185,-619.77642217,0.00014996,2]
[352937460,1739445038201,-211.91357783,0.00014996,2]
[352937461,1739445038210,-127.38969889,0.00014996,2]
[352937462,1739445038692,-372.61030111,0.00014996,2]
[352937463,1739445038702,-500.0,0.00014996,2]
[352937464,1739445038711,-500.0,0.00014996,2]
[352937465,1739445038722,-500.0,0.00014996,2]
[352937466,1739445038731,-789.49,0.00014996,2]
[352937467,1739445038741,-500.0,0.00014996,2]
[352937468,1739445038751,-500.0,0.00014996,2]
[352937469,1739445038761,-527.76,0.00014996,2]
[352937470,1739445038770,-500.0,0.00014996,2]
[352937471,1739445038779,-500.0,0.00014996,2]
[352937472,1739445038789,-503.41885983,0.00014996,2]
[352937473,1739445038798,-649.98,0.00014996,2]
[352937474,1739445038807,-500.0,0.00014996,2]
[352937475,1739445038817,-370.92956257,0.00014996,2]
[352937476,1739445038826,-500.0,0.00014996,2]
[352937477,1739445038835,-904.62,0.00014996,2]
[352937478,1739445038843,-500.0,0.00014996,2]
[352937479,1739445038852,-500.0,0.00014996,2]
[352937480,1739445038862,-500.0,0.00014996,2]
[352937481,1739445038871,-994.15,0.00014996,2]
[352937482,1739445038881,-500.0,0.00014996,2]
[352937483,1739445038890,-500.0,0.00014996,2]
[352937484,1739445038899,-647.69,0.00014996,2]
[352937485,1739445038908,-500.0,0.00014996,2]
[352937486,1739445038917,-587.34234884,0.00014996,2]
[352937487,1739445038926,-500.84408562,0.00014996,2]
[352937488,1739445038935,-500.0,0.00014996,2]
[352937489,1739445038944,-597.53,0.00014996,2]
[352937490,1739445038953,-500.0,0.00014996,2]
[352937491,1739445038963,-500.0,0.00014996,2]
[352937492,1739445038971,-500.0,0.00014996,2]
[352937493,1739445038981,-500.0,0.00014996,2]
[352937494,1739445038990,-500.0,0.00014996,2]
[352937495,1739445038999,-919.27,0.00014996,2]
[352937496,1739445039008,-1084.83952521,0.00014996,2]
[352937503,1739445039904,-695.13553672,0.00014995,2]
[352937504,1739445039916,-293.073,0.00014995,2]
[352937505,1739445039952,-154.35146328,0.00014995,2]
[352937506,1739445039962,-27.40047479,0.00014996,2]
[352937507,1739445039971,-500.0,0.00014996,2]
[352937508,1739445039982,-500.0,0.00014996,2]
[352937509,1739445039991,-284.67979256,0.00014996,2]
[352937510,1739445040003,-215.32020744,0.00014996,2]
[352937511,1739445040012,-1726.98,0.00014996,2]
[352937512,1739445040022,-500.0,0.00014996,2]
[352937513,1739445040031,-688.75,0.00014996,2]
[352937514,1739445040042,-500.0,0.00014996,2]
[352937515,1739445040051,-941.23,0.00014996,2]
[352937516,1739445040061,-4149.49,0.00014996,2]
[352937517,1739445040071,-500.0,0.00014996,2]
[352937518,1739445040080,-1781.54,0.00014996,2]
[352937519,1739445040090,-500.0,0.00014996,2]
[352937520,1739445040099,-502.69904213,0.00014996,2]
[352937521,1739445040110,-1178.28,0.00014996,2]
[352937522,1739445040120,-500.0,0.00014996,2]
[352937523,1739445040131,-500.0,0.00014996,2]
[352937524,1739445040141,-500.0,0.00014996,2]
[352937525,1739445040153,-500.0,0.00014996,2]
[352937526,1739445040163,-644.51,0.00014996,2]
[352937527,1739445040172,-1531.78,0.00014996,2]
[352937528,1739445040192,-500.70398151,0.00014996,2]
[352937529,1739445040201,-1934.88,0.00014996,2]
[352937530,1739445040211,-500.0,0.00014996,2]
[352937531,1739445040220,-1626.54,0.00014996,2]
[352937533,1739445040229,-1746.52,0.00014996,2]
[352937535,1739445040238,-765.66,0.00014996,2]
[352937537,1739445040247,-2282.84,0.00014996,2]
[352937538,1739445040256,-500.0,0.00014996,2]
[352937539,1739445040265,-89.27227262,0.00014996,2]
[352937540,1739445040278,-544.88772738,0.00014996,2]
[352937541,1739445040288,-548.64,0.00014996,2]
[352937542,1739445040297,-1739.51,0.00014996,2]
[352937543,1739445040306,-3696.18,0.00014996,2]
[352937544,1739445040315,-500.0,0.00014996,2]
[352937545,1739445040324,-500.0,0.00014996,2]
[352937546,1739445040333,-500.0,0.00014996,2]
[352937547,1739445040342,-1094.08,0.00014996,2]
[352937548,1739445040352,-1025.74,0.00014996,2]
[352937549,1739445040361,-500.0,0.00014996,2]
[352937550,1739445040371,-500.0,0.00014996,2]
[352937551,1739445040380,-500.0,0.00014996,2]
[352937552,1739445040393,-2243.42,0.00014996,2]
[352937553,1739445040402,-1439.11,0.00014996,2]
[352937554,1739445040412,-2622.4,0.00014996,2]
[352937555,1739445040421,-500.0,0.00014996,2]
[352937556,1739445040431,-316.29340586,0.00014996,2]
[352937557,1739445040440,-500.0,0.00014996,2]
[352937558,1739445040449,-500.0,0.00014996,2]
[352937559,1739445040459,-1842.09,0.00014996,2]
[352937560,1739445040468,-1692.68,0.00014996,2]
[352937561,1739445040478,-3040.07,0.00014996,2]
[352937562,1739445040488,-500.0,0.00014996,2]
[352937563,1739445040497,-1990.31,0.00014996,2]
[352937564,1739445040507,-668.15,0.00014996,2]
[352937565,1739445040516,-2509.86,0.00014996,2]
[352937566,1739445040526,-2823.59,0.00014996,2]
[352937567,1739445040535,-500.0,0.00014996,2]
[352937568,1739445040545,-2705.43,0.00014996,2]
[352937569,1739445040555,-780.75,0.00014996,2]
[352937570,1739445040565,-500.0,0.00014996,2]
[352937571,1739445040574,-2756.23,0.00014996,2]
[352937572,1739445040584,-1197.24,0.00014996,2]
[352937573,1739445040594,-1200.0,0.00014996,2]
[352937574,1739445040603,-715.05,0.00014996,2]
[352937575,1739445040614,-500.0,0.00014996,2]
[352937576,1739445040624,-1476.86,0.00014996,2]
[352937577,1739445040633,-500.0,0.00014996,2]
[352937578,1739445040643,-500.0,0.00014996,2]
[352937579,1739445040653,-591.17,0.00014996,2]
[352937580,1739445040662,-2271.67,0.00014996,2]
[352937581,1739445040671,-932.56,0.00014996,2]
[352937582,1739445040680,-501.73,0.00014996,2]
[352937583,1739445040690,-500.0,0.00014996,2]
[352937584,1739445040699,-1525.9,0.00014996,2]
[352937585,1739445040709,-1663.45,0.00014996,2]
[352937586,1739445040719,-945.0,0.00014996,2]
[352937587,1739445040729,-2866.76,0.00014996,2]
[352937588,1739445040738,-500.0,0.00014996,2]
[352937589,1739445040748,-500.0,0.00014996,2]
[352937590,1739445040758,-687.67,0.00014996,2]
[352937591,1739445040769,-2577.89,0.00014996,2]
[352937592,1739445040778,-1857.35,0.00014996,2]
[352937593,1739445040788,-3884.76,0.00014996,2]
[352937594,1739445040798,-2028.92,0.00014996,2]
[352937595,1739445040807,-500.0,0.00014996,2]
[352937596,1739445040817,-709.24,0.00014996,2]
[352937597,1739445040827,-3691.17,0.00014996,2]
[352937598,1739445040836,-2298.61,0.00014996,2]
[352937599,1739445040846,-859.7,0.00014996,2]
[352937600,1739445040855,-500.0,0.00014996,2]
[352937601,1739445040864,-2481.43,0.00014996,2]
[352937602,1739445040873,-1593.33,0.00014996,2]
[352937603,1739445040882,-974.2,0.00014996,2]
[352937604,1739445040892,-9286.74,0.00014996,2]
[352937605,1739445040901,-1036.72,0.00014996,2]
[352937606,1739445040911,-1909.48,0.00014996,2]
[352937607,1739445040920,-1721.06,0.00014996,2]
[352937608,1739445040930,-500.0,0.00014996,2]
[352937609,1739445040940,-3128.46,0.00014996,2]
[352937610,1739445040949,-1873.18,0.00014996,2]
[352937611,1739445040958,-500.0,0.00014996,2]
[352937612,1739445040967,-500.0,0.00014996,2]
[352937613,1739445040977,-2260.99,0.00014996,2]
[352937614,1739445040986,-3157.87,0.00014996,2]
[352937615,1739445040995,-2144.69,0.00014996,2]
[352937616,1739445041005,-500.0,0.00014996,2]
[352937617,1739445041015,-2058.58,0.00014996,2]
[352937618,1739445041025,-517.49680891,0.00014996,2]
[352937619,1739445041034,-500.0,0.00014996,2]
[352937620,1739445041044,-500.0,0.00014996,2]
[352937621,1739445041054,-4978.91,0.00014996,2]
[352937622,1739445041064,-500.0,0.00014996,2]
[352937623,1739445041073,-2909.46,0.00014996,2]
[352937624,1739445041083,-679.39,0.00014996,2]
[352937625,1739445041093,-500.0,0.00014996,2]
[352937626,1739445041102,-2049.39,0.00014996,2]
[352937627,1739445041111,-674.22,0.00014996,2]
[352937628,1739445041121,-4088.97,0.00014996,2]
[352937629,1739445041131,-500.0,0.00014996,2]
[352937630,1739445041142,-3067.47,0.00014996,2]
[352937631,1739445041153,-2256.5,0.00014996,2]
[352937632,1739445041163,-500.0,0.00014996,2]
[352937633,1739445041173,-419.04184834,0.00014996,2]
[352937634,1739445041182,-9072.85,0.00014996,2]
[352937635,1739445041192,-500.0,0.00014996,2]
[352937636,1739445041202,-500.0,0.00014996,2]
[352937637,1739445041211,-4876.2,0.00014996,2]
[352937638,1739445041221,-500.0,0.00014996,2]
[352937639,1739445041230,-6664.61,0.00014996,2]
[352937640,1739445041239,-914.79,0.00014996,2]
[352937641,1739445041249,-3587.44,0.00014996,2]
[352937642,1739445041259,-506.58004589,0.00014996,2]
[352937643,1739445041268,-500.0,0.00014996,2]
[352937644,1739445041278,-500.0,0.00014996,2]
[352937645,1739445041288,-299.08457114,0.00014996,2]
[352937646,1739445041307,-1334.12542886,0.00014996,2]
[352937647,1739445041317,-500.0,0.00014996,2]
[352937648,1739445041327,-597.9106838,0.00014996,2]
[352937649,1739445041339,-46.44294962,0.00014996,2]
[352937650,1739445041349,-931.8,0.00014996,2]
[352937651,1739445041358,-711.67,0.00014996,2]
[352937652,1739445041367,-1475.73,0.00014996,2]
[352937653,1739445041378,-500.0,0.00014996,2]
[352937654,1739445041389,-500.0,0.00014996,2]
[352937655,1739445041403,-502.71540294,0.00014996,2]
[352937656,1739445041414,-2599.27,0.00014996,2]
[352937657,1739445041425,-2222.3,0.00014996,2]
[352937658,1739445041435,-500.0,0.00014996,2]
[352937659,1739445041445,-500.0,0.00014996,2]
[352937660,1739445041454,-500.0,0.00014996,2]
[352937661,1739445041463,-2674.0,0.00014996,2]
[352937662,1739445041475,-3313.99,0.00014996,2]
[352937663,1739445041485,-677.24,0.00014996,2]
[352937664,1739445041495,-1645.82,0.00014996,2]
[352937665,1739445041505,-500.0,0.00014996,2]
[352937666,1739445041515,-500.0,0.00014996,2]
[352937667,1739445041524,-116.45164744,0.00014996,2]
[352937668,1739445041536,-383.54835256,0.00014996,2]
[352937669,1739445041545,-639.3,0.00014996,2]
[352937670,1739445041555,-500.0,0.00014996,2]
[352937671,1739445041565,-527.75,0.00014996,2]
[352937672,1739445041574,-2050.38,0.00014996,2]
[352937673,1739445041584,-514.94546852,0.00014996,2]
[352937674,1739445041595,-170.11453148,0.00014996,2]
[352937675,1739445041605,-633.24346852,0.00014996,2]
[352937683,1739445042781,-500.0,0.00014995,2]
[352937684,1739445042790,-60.47152291,0.00014995,2]
[352937685,1739445042803,-293.09712463,0.00014995,2]
[352937686,1739445042834,-146.43135246,0.00014995,2]
[352937687,1739445042843,-960.06676779,0.00014996,2]
[352937688,1739445043088,-194.08976369,0.00014996,2]
[352937689,1739445043097,-3998.38,0.00014996,2]
[352937690,1739445043107,-2623.57,0.00014996,2]
[352937691,1739445043116,-4686.85,0.00014996,2]
[352937692,1739445043125,-985.73,0.00014996,2]
[352937693,1739445043135,-329.00226511,0.00014996,2]
[352937694,1739445043144,-3093.41,0.00014996,2]
[352937695,1739445043153,-3364.29,0.00014996,2]
[352937696,1739445043163,-206.36151587,0.00014996,2]
[352937697,1739445043173,-3077.24,0.00014996,2]
[352937698,1739445043183,-441.2400488,0.00014996,2]
[352937699,1739445043192,-500.0,0.00014996,2]
[352937700,1739445043202,-1879.19,0.00014996,2]
[352937701,1739445043211,-1146.06,0.00014996,2]
[352937702,1739445043221,-1865.35,0.00014996,2]